fUSD/lending_fUSD_20240428
["ID","MTS","AMOUNT","RATE_DAILY","PERIOD"]
[16346,1714329070790,-513.58,0.00011506,2]
[16347,1714329070800,-500.0,0.00011506,2]
[16348,1714329070809,-500.0,0.00011506,2]
[16349,1714329070819,-500.0,0.00011506,2]
[16350,1714329070828,-500.0,0.00011506,2]
[16351,1714329070839,-522.25,0.00011506,2]
[16352,1714329070848,-500.0,0.00011506,2]
[16353,1714329070858,-500.0,0.00011506,2]
[16354,1714329070867,-500.0,0.00011506,2]
[16355,1714329070877,-500.0,0.00011506,2]
[16356,1714329070887,-560.42,0.00011506,2]
[16357,1714329070896,-626.23,0.00011506,2]
[16358,1714329070906,-1310.66,0.00011506,2]
[16359,1714329070915,-500.0,0.00011506,2]
[16360,1714329070923,-500.0,0.00011506,2]
[16361,1714329070930,-500.0,0.00011506,2]
[16362,1714329070938,-500.0,0.00011506,2]
[16363,1714329070947,-500.0,0.00011506,2]
[16364,1714329070957,-1056.37,0.00011506,2]
[16365,1714329070967,-500.0,0.00011506,2]
[16366,1714329070976,-500.0,0.00011506,2]
[16367,1714329070986,-500.0,0.00011506,2]
[16368,1714329070996,-500.0,0.00011506,2]
[16369,1714329071005,-501.7,0.00011506,2]
[16370,1714329071015,-500.0,0.00011506,2]
[16371,1714329071024,-775.76,0.00011506,2]
[16372,1714329071033,-676.09,0.00011506,2]
[16373,1714329071043,-500.0,0.00011506,2]
[16375,1714329071062,-500.0,0.00011506,2]
[16376,1714329071072,-500.0,0.00011506,2]
[16377,1714329071081,-500.0,0.00011506,2]
[16378,1714329071091,-500.0,0.00011506,2]
[16379,1714329071100,-500.0,0.00011506,2]
[16380,1714329071110,-540.43,0.00011506,2]
[16381,1714329071119,-500.0,0.00011506,2]
[16382,1714329071129,-551.61,0.00011506,2]
[16383,1714329071138,-500.0,0.00011506,2]
[16385,1714329071157,-500.0,0.00011506,2]
[16387,1714329071176,-500.0,0.00011506,2]
[16389,1714329071195,-500.0,0.00011506,2]
[16391,1714329071214,-500.0,0.00011506,2]
[16392,1714329071224,-549.6,0.00011506,2]
[16393,1714329071233,-500.0,0.00011506,2]
[16394,1714329071242,-500.0,0.00011506,2]
[16395,1714329071252,-527.24,0.00011506,2]
[16396,1714329071261,-500.0,0.00011506,2]
[16397,1714329071271,-500.0,0.00011506,2]
[16398,1714329071280,-500.0,0.00011506,2]
[16399,1714329071290,-500.0,0.00011506,2]
[16400,1714329071300,-502.31900163,0.00011506,2]
[16401,1714329071310,-500.0,0.00011506,2]
[16402,1714329071319,-500.0,0.00011506,2]
[16403,1714329071330,-202.58432277,0.00011506,2]
[16404,1714329071339,-500.0,0.00011506,2]
[16405,1714329071348,-500.0,0.00011506,2]
[16406,1714329071358,-500.0,0.00011506,2]
[16407,1714329071367,-500.0,0.00011506,2]
[16409,1714329071387,-500.0,0.00011506,2]
[16411,1714329071407,-500.0,0.00011506,2]
[16413,1714329071426,-500.0,0.00011506,2]
[16415,1714329071445,-500.0,0.00011506,2]
[16417,1714329071464,-571.29096282,0.00011506,2]
[16419,1714329071484,-500.0,0.00011506,2]
[16421,1714329071504,-500.0,0.00011506,2]
[16423,1714329071523,-500.0,0.00011506,2]
[16425,1714329071542,-500.0,0.00011506,2]
[16427,1714329071562,-500.0,0.00011506,2]
[16429,1714329071582,-500.0,0.00011506,2]
[16431,1714329071601,-500.0,0.00011506,2]
[16433,1714329071620,-500.0,0.00011506,2]
[16435,1714329071639,-500.0,0.00011506,2]
[16436,1714329071649,-500.0,0.00011506,2]
[16437,1714329071658,-500.0,0.00011506,2]
[16438,1714329071670,-628.03,0.00011506,2]
[16439,1714329071680,-500.0,0.00011506,2]
[16440,1714329071690,-500.0,0.00011506,2]
[16441,1714329071699,-500.0,0.00011506,2]
[16442,1714329071711,-500.0,0.00011506,2]
[16443,1714329071720,-500.0,0.00011506,2]
[16445,1714329071739,-500.0,0.00011506,2]
[16447,1714329071761,-1178.77,0.00011506,2]
[16449,1714329071780,-500.0,0.00011506,2]
[16451,1714329071799,-500.0,0.00011506,2]
[16453,1714329071818,-707.71,0.00011506,2]
[16454,1714329071827,-832.16,0.00011506,2]
[16455,1714329071837,-500.0,0.00011506,2]
[16456,1714329071846,-605.1,0.00011506,2]
[16457,1714329071857,-500.0,0.00011506,2]
[16459,1714329071878,-504.25781961,0.00011506,2]
[16461,1714329071898,-506.58292653,0.00011506,2]
[16462,1714329071908,-500.0,0.00011506,2]
[16463,1714329071918,-500.0,0.00011506,2]
[16464,1714329071928,-500.0,0.00011506,2]
[16465,1714329071938,-585.93,0.00011506,2]
[16466,1714329071949,-500.0,0.00011506,2]
[16467,1714329071960,-500.0,0.00011506,2]
[16468,1714329071970,-500.0,0.00011506,2]
[16469,1714329071981,-500.0,0.00011506,2]
[16471,1714329072003,-500.0,0.00011506,2]
[16473,1714329072024,-534.27,0.00011506,2]
[16475,1714329072045,-773.75,0.00011506,2]
[16476,1714329072056,-500.0,0.00011506,2]
[16477,1714329072068,-500.0,0.00011506,2]
[16479,1714329072091,-500.0,0.00011506,2]
[16481,1714329072110,-500.0,0.00011506,2]
[16483,1714329072131,-1055.21,0.00011506,2]
[16485,1714329072151,-731.11,0.00011506,2]
[16487,1714329072172,-1217.45,0.00011506,2]
[16488,1714329072183,-500.0,0.00011506,2]
[16489,1714329072194,-500.0,0.00011506,2]
[16490,1714329072203,-500.0,0.00011506,2]
[16491,1714329072214,-532.31,0.00011506,2]
[16492,1714329072226,-500.0,0.00011506,2]
[16493,1714329072239,-500.0,0.00011506,2]
[16495,1714329072259,-500.0,0.00011506,2]
[16497,1714329072279,-500.0,0.00011506,2]
[16499,1714329072300,-806.46,0.00011506,2]
[16501,1714329072319,-500.0,0.00011506,2]
[16502,1714329072329,-500.0,0.00011506,2]
[16503,1714329072338,-500.0,0.00011506,2]
[16504,1714329072348,-500.0,0.00011506,2]
[16505,1714329072358,-500.0,0.00011506,2]
[16506,1714329072369,-1304.76,0.00011506,2]
[16507,1714329072379,-500.0,0.00011506,2]
[16508,1714329072389,-500.0,0.00011506,2]
[16509,1714329072400,-500.0,0.00011506,2]
[16510,1714329072409,-662.77,0.00011506,2]
[16511,1714329072421,-500.0,0.00011506,2]
[16512,1714329072431,-500.0,0.00011506,2]
[16513,1714329072440,-501.83594152,0.00011506,2]
[16514,1714329072451,-500.0,0.00011506,2]
[16515,1714329072703,-500.0,0.00011506,2]
[16516,1714329072715,-500.0,0.00011506,2]
[16517,1714329072725,-500.0,0.00011506,2]
[16518,1714329072734,-1390.68,0.00011506,2]
[16519,1714329072744,-1111.61,0.00011506,2]
[16521,1714329072764,-565.83,0.00011506,2]
[16523,1714329072782,-500.0,0.00011506,2]
[16525,1714329072801,-267.26695709,0.00011506,2]
[16527,1714329072819,-508.26,0.00011506,2]
[16529,1714329072838,-500.0,0.00011506,2]
[16531,1714329072859,-500.0,0.00011506,2]
[16533,1714329072881,-500.0,0.00011506,2]
[16535,1714329072901,-500.0,0.00011506,2]
[16537,1714329072920,-500.0,0.00011506,2]
[16539,1714329072939,-500.0,0.00011506,2]
[16540,1714329072948,-500.0,0.00011506,2]
[16541,1714329072957,-1180.8,0.00011506,2]
[16543,1714329072976,-500.0,0.00011506,2]
[16545,1714329072995,-500.0,0.00011506,2]
[16547,1714329073013,-500.0,0.00011506,2]
[16549,1714329073032,-500.0,0.00011506,2]
[16551,1714329073052,-1122.8,0.00011506,2]
[16553,1714329073072,-500.0,0.00011506,2]
[16555,1714329073093,-500.0,0.00011506,2]
[16557,1714329073112,-500.0,0.00011506,2]
[16559,1714329073130,-341.33434382,0.00011506,2]
[16561,1714329073151,-500.0,0.00011506,2]
[16563,1714329073171,-500.0,0.00011506,2]
[16565,1714329073190,-500.0,0.00011506,2]
[16567,1714329073208,-1788.12,0.00011506,2]
[16569,1714329073227,-504.11729366,0.00011506,2]
[16570,1714329073236,-500.0,0.00011506,2]
[16571,1714329073246,-150.0,0.00011506,2]
[16572,1714329073256,-500.0,0.00011506,2]
[16573,1714329073265,-705.96,0.00011506,2]
[16575,1714329073283,-500.0,0.00011506,2]
[16576,1714329073292,-500.0,0.00011506,2]
[16577,1714329073301,-500.0,0.00011506,2]
[16578,1714329073310,-500.0,0.00011506,2]
[16579,1714329073319,-500.0,0.00011506,2]
[16581,1714329073338,-500.0,0.00011506,2]
[16583,1714329073356,-755.04,0.00011506,2]
[16585,1714329073381,-500.0,0.00011506,2]
[16587,1714329073401,-500.0,0.00011506,2]
[16588,1714329073411,-500.0,0.00011506,2]
[16589,1714329073421,-569.87,0.00011506,2]
[16591,1714329073440,-500.0,0.00011506,2]
[16593,1714329073460,-1008.22,0.00011506,2]
[16594,1714329073470,-718.07,0.00011506,2]
[16595,1714329073480,-500.0,0.00011506,2]
[16596,1714329073490,-500.0,0.00011506,2]
[16597,1714329073501,-500.0,0.00011506,2]
[16598,1714329073511,-500.0,0.00011506,2]
[16599,1714329073521,-500.0,0.00011506,2]
[16600,1714329073530,-500.0,0.00011506,2]
[16601,1714329073540,-500.0,0.00011506,2]
[16603,1714329073560,-1114.07,0.00011506,2]
[16605,1714329073581,-500.0,0.00011506,2]
[16607,1714329073601,-500.0,0.00011506,2]
[16609,1714329073622,-500.0,0.00011506,2]
[16610,1714329073632,-1722.02,0.00011506,2]
[16611,1714329073642,-500.0,0.00011506,2]
[16612,1714329073652,-500.0,0.00011506,2]
[16613,1714329073667,-500.0,0.00011506,2]
[16614,1714329073677,-500.0,0.00011506,2]
[16615,1714329073687,-500.0,0.00011506,2]
[16616,1714329073699,-645.11,0.00011506,2]
[16617,1714329073711,-500.0,0.00011506,2]
[16619,1714329073732,-502.66690544,0.00011506,2]
[16621,1714329073753,-768.98,0.00011506,2]
[16623,1714329073773,-648.5,0.00011506,2]
[16625,1714329073795,-717.43,0.00011506,2]
[16627,1714329073815,-500.0,0.00011506,2]
[16628,1714329073825,-500.0,0.00011506,2]
[16629,1714329073835,-673.41,0.00011506,2]
[16630,1714329073845,-500.0,0.00011506,2]
[16631,1714329073855,-1373.18,0.00011506,2]
[16632,1714329073865,-518.35,0.00011506,2]
[16633,1714329073875,-500.0,0.00011506,2]
[16635,1714329073895,-500.0,0.00011506,2]
[16637,1714329073916,-500.0,0.00011506,2]
[16639,1714329073936,-500.0,0.00011506,2]
[16641,1714329073957,-794.96,0.00011506,2]
[16643,1714329073981,-500.0,0.00011506,2]
[16645,1714329074003,-500.0,0.00011506,2]
[16647,1714329074023,-500.0,0.00011506,2]
[16649,1714329074046,-500.0,0.00011506,2]
[16651,1714329074065,-552.84,0.00011506,2]
[16653,1714329074087,-500.0,0.00011506,2]
[16655,1714329074107,-500.0,0.00011506,2]
[16657,1714329074126,-1173.43,0.00011506,2]
[16659,1714329074145,-500.0,0.00011506,2]
[16661,1714329074166,-1079.13,0.00011506,2]
[16663,1714329074186,-500.0,0.00011506,2]
[16665,1714329074206,-572.97,0.00011506,2]
[16667,1714329074226,-502.26526792,0.00011506,2]
[16669,1714329074246,-1722.94,0.00011506,2]
[16671,1714329074267,-690.01,0.00011506,2]
[16673,1714329074287,-555.02,0.00011506,2]
[16675,1714329074309,-351.39622439,0.00011506,2]
[16677,1714329074328,-500.0,0.00011506,2]
[16679,1714329074348,-501.69,0.00011506,2]
[16681,1714329074368,-500.0,0.00011506,2]
[16683,1714329074388,-500.0,0.00011506,2]
[16685,1714329074408,-508.41,0.00011506,2]
[16687,1714329074428,-1000.0,0.00011506,2]
[16689,1714329074448,-1037.99,0.00011506,2]
[16690,1714329074458,-500.0,0.00011506,2]
[16691,1714329074469,-500.0,0.00011506,2]
[16692,1714329074479,-778.4,0.00011506,2]
[16693,1714329074489,-500.0,0.00011506,2]
[16694,1714329074499,-500.0,0.00011506,2]
[16695,1714329074509,-504.00269152,0.00011506,2]
[16696,1714329074519,-500.0,0.00011506,2]
[16697,1714329074529,-500.0,0.00011506,2]
[16699,1714329074550,-818.36,0.00011506,2]
[16701,1714329074571,-862.57,0.00011506,2]
[16703,1714329074592,-500.0,0.00011506,2]
[16705,1714329074612,-860.79,0.00011506,2]
[16707,1714329074632,-500.0,0.00011506,2]
[16709,1714329074651,-1876.31,0.00011506,2]
[16711,1714329074675,-500.0,0.00011506,2]
[16713,1714329074694,-725.3,0.00011506,2]
[16715,1714329074715,-1054.31,0.00011506,2]
[16717,1714329074734,-500.0,0.00011506,2]
[16719,1714329074758,-500.0,0.00011506,2]
[16721,1714329074778,-784.22,0.00011506,2]
[16723,1714329074797,-500.0,0.00011506,2]
[16725,1714329074817,-500.0,0.00011506,2]
[16727,1714329074839,-500.0,0.00011506,2]
[16729,1714329074859,-780.48,0.00011506,2]
[16731,1714329074887,-500.0,0.00011506,2]
[16733,1714329074910,-500.0,0.00011506,2]
[16735,1714329074930,-528.05,0.00011506,2]
[16737,1714329074950,-500.0,0.00011506,2]
[16739,1714329074971,-1205.16,0.00011506,2]
[16740,1714329074981,-704.8,0.00011506,2]
[16741,1714329074991,-500.0,0.00011506,2]
[16742,1714329075001,-658.26,0.00011506,2]
[16743,1714329075011,-500.0,0.00011506,2]
[16744,1714329075021,-500.0,0.00011506,2]
[16745,1714329075031,-500.0,0.00011506,2]
[16747,1714329075051,-1863.44,0.00011506,2]
[16749,1714329075072,-500.0,0.00011506,2]
[16751,1714329075107,-812.83,0.00011506,2]
[16753,1714329075144,-500.0,0.00011506,2]
[16755,1714329075173,-500.0,0.00011506,2]
[16757,1714329075207,-500.0,0.00011506,2]
[16758,1714329075224,-500.0,0.00011506,2]
[16759,1714329075241,-500.0,0.00011506,2]
[16761,1714329075272,-500.0,0.00011506,2]
[16762,1714329075287,-500.98973468,0.00011506,2]
[16763,1714329075302,-500.0,0.00011506,2]
[16764,1714329075317,-500.0,0.00011506,2]
[16765,1714329075332,-500.0,0.00011506,2]
[16767,1714329075356,-1190.14,0.00011506,2]
[16769,1714329075384,-500.0,0.00011506,2]
[16771,1714329075416,-626.13,0.00011506,2]
[16772,1714329075431,-500.0,0.00011506,2]
[16773,1714329075442,-500.0,0.00011506,2]
[16775,1714329075465,-876.81,0.00011506,2]
[16777,1714329075492,-500.0,0.00011506,2]
[16779,1714329075516,-752.63,0.00011506,2]
[16781,1714329075546,-500.0,0.00011506,2]
[16783,1714329075572,-765.33,0.00011506,2]
[16785,1714329075597,-500.0,0.00011506,2]
[16787,1714329075625,-500.0,0.00011506,2]
[16789,1714329075656,-500.0,0.00011506,2]
[16791,1714329075687,-500.0,0.00011506,2]
[16793,1714329075718,-500.0,0.00011506,2]
[16794,1714329075733,-500.0,0.00011506,2]
[16795,1714329075747,-500.0,0.00011506,2]
[16797,1714329075774,-500.0,0.00011506,2]
[16798,1714329075787,-508.53,0.00011506,2]
[16799,1714329075800,-500.0,0.00011506,2]
[16800,1714329075813,-1019.77,0.00011506,2]
[16801,1714329075827,-500.0,0.00011506,2]
[16802,1714329075841,-500.0,0.00011506,2]
[16803,1714329075854,-605.8,0.00011506,2]
[16805,1714329075886,-500.0,0.00011506,2]
[16807,1714329075917,-1059.27,0.00011506,2]
[16809,1714329075946,-517.79,0.00011506,2]
[16811,1714329075974,-517.79517509,0.00011506,2]
[16813,1714329076004,-500.0,0.00011506,2]
[16814,1714329076019,-500.0,0.00011506,2]
[16815,1714329076035,-517.51,0.00011506,2]
[16817,1714329076066,-500.0,0.00011506,2]
[16819,1714329076095,-500.0,0.00011506,2]
[16821,1714329076124,-500.0,0.00011506,2]
[16823,1714329076161,-830.99,0.00011506,2]
[16824,1714329076173,-500.0,0.00011506,2]
[16825,1714329076186,-500.0,0.00011506,2]
[16827,1714329076212,-501.42919224,0.00011506,2]
[16828,1714329076224,-582.79,0.00011506,2]
[16829,1714329076239,-500.0,0.00011506,2]
[16830,1714329076251,-551.5,0.00011506,2]
[16831,1714329076265,-500.0,0.00011506,2]
[16832,1714329076278,-500.0,0.00011506,2]
[16833,1714329076291,-500.0,0.00011506,2]
[16835,1714329076317,-500.0,0.00011506,2]
[16836,1714329076330,-500.0,0.00011506,2]
[16837,1714329076342,-1415.69,0.00011506,2]
[16838,1714329076355,-500.0,0.00011506,2]
[16839,1714329076367,-527.17330435,0.00011506,2]
[16841,1714329076392,-661.37,0.00011506,2]
[16843,1714329076417,-1488.72,0.00011506,2]
[16845,1714329076453,-836.74,0.00011506,2]
[16847,1714329076479,-500.0,0.00011506,2]
[16849,1714329076504,-669.02,0.00011506,2]
[16851,1714329076530,-710.13,0.00011506,2]
[16853,1714329076555,-500.0,0.00011506,2]
[16855,1714329076580,-500.0,0.00011506,2]
[16857,1714329076606,-1298.79,0.00011506,2]
[16859,1714329076632,-1163.95,0.00011506,2]
[16861,1714329076657,-1171.06,0.00011506,2]
[16863,1714329076683,-500.0,0.00011506,2]
[16865,1714329076708,-500.0,0.00011506,2]
[16866,1714329076719,-782.58,0.00011506,2]
[16867,1714329076731,-681.46,0.00011506,2]
[16869,1714329076756,-500.0,0.00011506,2]
[16870,1714329076767,-741.3,0.00011506,2]
[16871,1714329076779,-500.0,0.00011506,2]
[16873,1714329076802,-1031.54,0.00011506,2]
[16875,1714329076825,-523.34,0.00011506,2]
[16877,1714329076848,-559.63,0.00011506,2]
[16878,1714329076859,-500.0,0.00011506,2]
[16879,1714329076870,-500.0,0.00011506,2]
[16880,1714329076881,-500.0,0.00011506,2]
[16881,1714329076892,-500.0,0.00011506,2]
[16883,1714329076915,-823.69,0.00011506,2]
[16885,1714329076937,-500.0,0.00011506,2]
[16886,1714329076948,-500.0,0.00011506,2]
[16887,1714329076960,-500.0,0.00011506,2]
[16888,1714329076972,-500.0,0.00011506,2]
[16889,1714329076983,-937.48,0.00011506,2]
[16891,1714329077005,-500.0,0.00011506,2]
[16892,1714329077017,-500.0,0.00011506,2]
[16893,1714329077028,-623.62,0.00011506,2]
[16894,1714329077039,-171.81955031,0.00011506,2]
[16895,1714329077050,-1027.6,0.00011506,2]
[16896,1714329077061,-500.0,0.00011506,2]
[16897,1714329077073,-500.0,0.00011506,2]
[16898,1714329077085,-500.0,0.00011506,2]
[16899,1714329077096,-500.0,0.00011506,2]
[16900,1714329077109,-500.0,0.00011506,2]
[16901,1714329077120,-1205.63,0.00011506,2]
[16902,1714329077132,-500.0,0.00011506,2]
[16903,1714329077143,-500.0,0.00011506,2]
[16904,1714329077155,-500.0,0.00011506,2]
[16905,1714329077166,-848.59,0.00011506,2]
[16906,1714329077178,-681.62,0.00011506,2]
[16907,1714329077190,-500.0,0.00011506,2]
[16908,1714329077201,-500.0,0.00011506,2]
[16909,1714329077213,-500.0,0.00011506,2]
[16910,1714329077226,-500.0,0.00011506,2]
[16911,1714329077238,-500.0,0.00011506,2]
[16912,1714329077249,-500.0,0.00011506,2]
[16913,1714329077261,-4457.04,0.00011506,2]
[16914,1714329077273,-500.0,0.00011506,2]
[16915,1714329077285,-576.16,0.00011506,2]
[16916,1714329077298,-500.0,0.00011506,2]
[16917,1714329077310,-1329.23,0.00011506,2]
[16919,1714329077333,-500.0,0.00011506,2]
[16921,1714329077357,-500.0,0.00011506,2]
[16923,1714329077382,-720.89,0.00011506,2]
[16925,1714329077406,-9567.9,0.00011506,2]
[16927,1714329077432,-1491.73,0.00011506,2]
[16929,1714329077456,-500.0,0.00011506,2]
[16931,1714329077481,-500.0,0.00011506,2]
[16933,1714329077505,-500.0,0.00011506,2]
[16935,1714329077529,-500.0,0.00011506,2]
[16936,1714329077541,-1014.05,0.00011506,2]
[16937,1714329077553,-869.17,0.00011506,2]
[16938,1714329077565,-500.0,0.00011506,2]
[16939,1714329077577,-829.31,0.00011506,2]
[16941,1714329077600,-500.0,0.00011506,2]
[16943,1714329077625,-500.0,0.00011506,2]
[16945,1714329077649,-602.41,0.00011506,2]
[16946,1714329077662,-500.0,0.00011506,2]
[16947,1714329077678,-500.0,0.00011506,2]
[16948,1714329077690,-500.0,0.00011506,2]
[16949,1714329077703,-2122.56,0.00011506,2]
[16950,1714329077717,-558.66,0.00011506,2]
[16951,1714329077728,-1093.84,0.00011506,2]
[16952,1714329077742,-500.0,0.00011506,2]
[16953,1714329077753,-500.0,0.00011506,2]
[16954,1714329077765,-500.0,0.00011506,2]
[16955,1714329077776,-1059.92,0.00011506,2]
[16956,1714329077787,-500.0,0.00011506,2]
[16957,1714329077799,-500.0,0.00011506,2]
[16958,1714329077811,-500.0,0.00011506,2]
[16959,1714329077822,-500.0,0.00011506,2]
[16961,1714329077846,-2548.79,0.00011506,2]
[16962,1714329077858,-500.0,0.00011506,2]
[16963,1714329077870,-500.0,0.00011506,2]
[16965,1714329077894,-500.0,0.00011506,2]
[16966,1714329077906,-545.7,0.00011506,2]
[16967,1714329077918,-500.0,0.00011506,2]
[16968,1714329077930,-908.47,0.00011506,2]
[16969,1714329077941,-500.0,0.00011506,2]
[16970,1714329077953,-1056.93,0.00011506,2]
[16971,1714329077965,-2129.61,0.00011506,2]
[16972,1714329077975,-500.0,0.00011506,2]
[16973,1714329077984,-500.0,0.00011506,2]
[16974,1714329077994,-500.0,0.00011506,2]
[16975,1714329078003,-2366.39,0.00011506,2]
[16977,1714329078021,-500.0,0.00011506,2]
[16979,1714329078038,-737.96,0.00011506,2]
[16981,1714329078057,-500.0,0.00011506,2]
[16983,1714329078075,-500.0,0.00011506,2]
[16985,1714329078480,-500.0,0.00011506,2]
[16987,1714329078520,-793.83,0.00011506,2]
[16989,1714329078539,-500.0,0.00011506,2]
[16991,1714329078557,-1032.47,0.00011506,2]
[16993,1714329078576,-628.51,0.00011506,2]
[16995,1714329078594,-500.0,0.00011506,2]
[16997,1714329078612,-500.0,0.00011506,2]
[16999,1714329078631,-676.7,0.00011506,2]
[17001,1714329078649,-500.0,0.00011506,2]
[17003,1714329078670,-500.0,0.00011506,2]
[17005,1714329078689,-500.0,0.00011506,2]
[17007,1714329078709,-952.74,0.00011506,2]
[17009,1714329078729,-2989.37,0.00011506,2]
[17011,1714329078752,-500.0,0.00011506,2]
[17013,1714329078772,-849.7,0.00011506,2]
[17015,1714329078792,-500.0,0.00011506,2]
[17017,1714329078812,-500.0,0.00011506,2]
[17019,1714329078832,-690.12,0.00011506,2]
[17021,1714329078851,-500.0,0.00011506,2]
[17023,1714329078871,-184.36525369,0.00011506,2]
[17025,1714329078891,-656.85,0.00011506,2]
[17027,1714329078909,-500.0,0.00011506,2]
[17029,1714329078927,-500.0,0.00011506,2]
[17031,1714329078945,-4948.32,0.00011506,2]
[17033,1714329078963,-1935.97,0.00011506,2]
[17035,1714329078982,-500.0,0.00011506,2]
[17037,1714329079001,-890.9,0.00011506,2]
[17039,1714329079019,-904.32,0.00011506,2]
[17040,1714329079028,-2097.93,0.00011506,2]
[17041,1714329079038,-28845.76,0.00011506,2]
[17042,1714329079047,-930.38,0.00011506,2]
[17043,1714329079056,-2847.3,0.00011506,2]
[17044,1714329079066,-500.0,0.00011506,2]
[17045,1714329079075,-500.0,0.00011506,2]
[17046,1714329079086,-2955.84,0.00011506,2]
[17047,1714329079095,-608.95,0.00011506,2]
[17048,1714329079104,-500.0,0.00011506,2]
[17049,1714329079113,-500.0,0.00011506,2]
[17050,1714329079122,-479.0,0.00011506,2]
[17051,1714329079132,-14552.13,0.00011506,2]
[17052,1714329079141,-2791.31,0.00011506,2]
[17053,1714329079150,-2200.29,0.00011506,2]
[17054,1714329079159,-517.61,0.00011506,2]
[17055,1714329079168,-1126.74,0.00011506,2]
[17057,1714329079186,-500.0,0.00011506,2]
[17059,1714329079204,-1004.16,0.00011506,2]
[17061,1714329079222,-1390.57,0.00011506,2]
[17063,1714329079240,-886.26,0.00011506,2]
[17065,1714329079258,-318.321282,0.00011506,2]
[17067,1714329079277,-500.0,0.00011506,2]
[17069,1714329079295,-1448.6,0.00011506,2]
[17071,1714329079313,-954.97,0.00011506,2]
[17073,1714329079331,-732.8,0.00011506,2]
[17075,1714329079350,-536.39,0.00011506,2]
[17077,1714329079368,-500.0,0.00011506,2]
[17079,1714329079386,-500.0,0.00011506,2]
[17081,1714329079406,-500.0,0.00011506,2]
[17083,1714329079425,-1055.94,0.00011506,2]
[17085,1714329079444,-8634.93,0.00011506,2]